{"text_format":"1","workbook":"xlsx","n_sheets":2,"sheets":["Отчет","Данные"],"not_rendered":{"charts":0,"images":1,"macros":1,"external_links":0,"defined_names":0,"comments":0,"pivot_tables":0},"unopened":[],"bounds":{"document_bytes":16777216,"sheet_cells":100000,"rows_first":2000,"rows_last":500,"rows_between":2000,"halvings":0,"cell_chars":16384,"cell_head_chars":4096},"cells_cut":0,"cells_raw":0,"read":"whole","date_system":"1900"}

{"sheet":"Отчет","index":0,"n_rows":26,"n_cols":32,"rows_kept":26,"cut":false,"hidden":false,"merged":[[7,7,10,7],[7,2,9,2],[7,1,9,1],[7,16,7,30],[8,16,8,30],[7,12,10,12],[7,3,9,3],[7,11,10,11],[7,14,10,14],[7,10,10,10],[7,6,10,6],[10,0,10,3],[7,5,10,5],[7,8,10,8],[7,9,10,9],[7,13,10,13],[7,0,9,0]]}
["Текущий рейтинг студентов после пересдач"]
["Дата выгрузки: 25.10.2016"]
["Период: 3-4 модули 2015/2016 уч. г."]
["Московский институт электроники и математики НИУ ВШЭ"]
["Направление  подготовки: \"Прикладная математика\""]
["Уровень образования, номер курса: Магистратура 1 курс"]
["Если Вы обнаружили расхождения, пожалуйста, обратитесь к менеджеру магистерских программ Горшковой Альбине Вартановне agorshkova@hse.ru,"]
["Место","Студент","ID","Группа",null,"Кредитно-рейтинговая оценка","Нормировочный коэффициент","Сумма всех кредитов ","Нормированная\n кредитно-рейтинговая оценка","Сумма оценок","Количество оценок","Средний балл","Минимальный балл","Наличие задодженнстей","Номер места","2015/2016 учебный год 3 модуль","2015/2016 учебный год 4 модуль"]
[null,null,null,null,null,null,null,null,null,null,null,null,null,null,null,"Экзамен","Экзамен"]
[null,null,null,null,"Номер Row",null,null,null,null,null,null,null,null,null,null,"Асимптотический анализ","Анализ данных","Анализ социальных сетей","Государственные закупки: теория для практики","Информационные системы корпоративного управления на платформе 1С","Междисциплинарная курсовая работа","Научно-исследовательская работа","Научно-исследовательский семинар","Основы астрономии","Параллельное и распределенное программирование","Перспективные аналитические исследования в глобальных сетях","Стохастические методы в инженерных приложениях","Теория игр","Теория управления","Управление проектами","Функциональный анализ"]
["Число текущих кредитов:",null,null,null,null,null,null,null,null,null,null,null,null,null,null,3,3,3,3,3,4,9,8,3,4,3,4,3,4,3,4]
[1,"Курочкин Роман Игоревич",1164852327,"МСУ151",{"$f":"MATCH(C12,Данные!$D$1:$D$65536,0)","v":8},456,{"$f":"IF(H12 > 0, MAX(H$12:H$26) / H12, 0)","v":1},49,{"$f":"F12*G12","v":456},103,11,{"$f":"IF(K12 > 0,J12/K12,0)","v":9.3636363636363633},{"$f":"MIN($P12:AE12)","v":8},null,11,9,null,null,null,null,10,9,9,9,10,10,8,null,10,9,10,1]
[2,"Плотников Станислав Павлович",1164852392,"МСУ151",{"$f":"MATCH(C13,Данные!$D$1:$D$65536,0)","v":12},425,1,49,425,95,11,8.6363636363636367,{"$f":"MIN($P13:AE13)","v":4},null,11,9,7,null,null,null,10,9,9,null,10,10,8,null,9,10,4,2]
[3,"Алчинова Регина Вячеславовна",1164852223,"МСУ151",{"$f":"MATCH(C14,Данные!$D$1:$D$65536,0)","v":3},385,1,49,385,87,11,7.9090909090909092,{"$f":"MIN($P14:AE14)","v":6},null,11,8,null,null,null,9,8,8,8,null,8,8,6,null,8,10,6,3]
[4,"Васильева Елена Олеговна",1164852275,"МСУ151",{"$f":"MATCH(C15,Данные!$D$1:$D$65536,0)","v":5},381,1,49,381,88,11,8,{"$f":"MIN($P15:AE15)","v":6},null,11,8,9,null,null,null,8,7,7,null,8,9,8,null,10,8,6,4]
[5,"Голованова Анастасия Юрьевна",1164852301,"МСУ151",{"$f":"MATCH(C16,Данные!$D$1:$D$65536,0)","v":6},379,1,49,379,88,11,8,{"$f":"MIN($P16:AE16)","v":5},null,11,7,null,null,null,null,9,7,7,null,8,9,6,10,5,10,10,5]
[6,"Сафонова Элла Владимировна",1164852405,"МСУ151",{"$f":"MATCH(C17,Данные!$D$1:$D$65536,0)","v":15},377,1,49,377,85,11,7.7272727272727275,{"$f":"MIN($P17:AE17)","v":5},null,11,6,null,null,null,null,10,8,8,null,6,9,7,10,5,10,6,6]
[7,"Пименова Екатерина Юрьевна",1164852379,"МСУ151",{"$f":"MATCH(C18,Данные!$D$1:$D$65536,0)","v":11},370,1,49,370,85,11,7.7272727272727275,{"$f":"MIN($P18:AE18)","v":6},null,11,6,null,null,null,null,10,7,7,null,6,8,8,9,6,10,8,7]
[8,"Бережко Валерия Сергеевна",1164852262,"МСУ151",{"$f":"MATCH(C19,Данные!$D$1:$D$65536,0)","v":16},368,1,49,368,85,11,7.7272727272727275,{"$f":"MIN($P19:AE19)","v":6},null,11,8,null,null,null,9,8,7,7,null,6,8,8,null,8,10,6,8]
[9,"Мурзин Петр Евгеньевич",1164852353,"МСУ151",{"$f":"MATCH(C20,Данные!$D$1:$D$65536,0)","v":10},361,1,49,361,80,11,7.2727272727272725,{"$f":"MIN($P20:AE20)","v":5},null,11,8,null,5,null,null,7,8,8,null,6,8,5,null,7,10,8,9]
[10,"Ковалева Анна Сергеевна",1171450447,"МСУ151",{"$f":"MATCH(C21,Данные!$D$1:$D$65536,0)","v":17},349,1,49,349,80,11,7.2727272727272725,{"$f":"MIN($P21:AE21)","v":5},null,11,9,null,null,null,8,9,7,7,null,6,8,6,null,6,9,5,10]
[11,"Иванов Роман Николаевич",1164852314,"МСУ151",{"$f":"MATCH(C22,Данные!$D$1:$D$65536,0)","v":7},346,1,49,346,78,11,7.0909090909090908,{"$f":"MIN($P22:AE22)","v":4},null,11,6,7,null,null,null,8,7,7,null,10,8,4,null,6,8,7,12]
[12,"Андреев Владислав Дмитриевич",1164852236,"МСУ151",{"$f":"MATCH(C23,Данные!$D$1:$D$65536,0)","v":4},337,1,49,337,73,11,6.6363636363636367,{"$f":"MIN($P23:AE23)","v":4},null,11,6,6,null,null,null,8,8,8,null,6,8,4,null,5,7,7,13]
[13,"Пак Тарас Евгеньевич",1164852366,"МСУ151",{"$f":"MATCH(C24,Данные!$D$1:$D$65536,0)","v":14},334,1,49,334,76,11,6.9090909090909092,{"$f":"MIN($P24:AE24)","v":5},null,11,9,6,null,null,null,5,7,7,null,6,10,6,null,5,8,7,14]
[14,"Якимов Илья Михайлович",1164852431,"МСУ151",{"$f":"MATCH(C25,Данные!$D$1:$D$65536,0)","v":13},324,1,49,324,69,11,6.2727272727272725,{"$f":"MIN($P25:AE25)","v":4},null,11,5,null,null,4,null,8,8,8,null,6,8,4,null,5,7,6,15]
[15,"Парамонов Георгий Константинович",1178703023,"МСУ151",{"$f":"MATCH(C26,Данные!$D$1:$D$65536,0)","v":18},299,1,49,299,66,11,6,{"$f":"MIN($P26:AE26)","v":4},null,11,5,null,null,null,8,8,7,7,null,4,8,4,null,4,7,4,16]

{"sheet":"Данные","index":1,"n_rows":178,"n_cols":22,"rows_kept":178,"cut":false,"hidden":true,"merged":[]}
["ID","Оценка из 10 баллов до пересдач","Группа","Студент","Фамилия Имя Отчество","Номер студенческого билета","Строка учебного плана","Текущих кредитов за испытание","Вид испытания","Календарный период по плану","Неявка до пересдач","В текущий рейтинг","Текущих кредитов для студента","Оценка зачет/незачет до пересдач","Является бюджетным","Учебный план","Вид записи РУП","Вид дисциплины по ИУП","Номер Row","Образовательная программа студента"]
[1,2,3,4,5,6,7,8,9,10,11,12,13,14,15,16,17,18,19,20]
[1173991867,8,"МСУ151",1164852223,"Алчинова Регина Вячеславовна","М151МСУОИ002","Асимптотический анализ",3,"Экзамен","2015/2016 учебный год 3 модуль",null,24,3,1,1,1014851738,2098,null,"stCommon",0,"Системы управления и обработки информации в инженерии",{"$f":"MATCH(D3,Отчет!$C$1:$C$65535,0)","v":14}]
[1173991927,6,"МСУ151",1164852236,"Андреев Владислав Дмитриевич","М151МСУОИ013","Асимптотический анализ",3,"Экзамен","2015/2016 учебный год 3 модуль",null,18,3,1,1,1014851738,2098,null,"stCommon",0,"Системы управления и обработки информации в инженерии",{"$f":"MATCH(D4,Отчет!$C$1:$C$65535,0)","v":23}]
[1173992099,8,"МСУ151",1164852275,"Васильева Елена Олеговна","М151МСУОИ016","Асимптотический анализ",3,"Экзамен","2015/2016 учебный год 3 модуль",null,24,3,1,1,1014851738,2098,null,"stCommon",0,"Системы управления и обработки информации в инженерии",{"$f":"MATCH(D5,Отчет!$C$1:$C$65535,0)","v":15}]
[1173992216,7,"МСУ151",1164852301,"Голованова Анастасия Юрьевна","М151МСУОИ001","Асимптотический анализ",3,"Экзамен","2015/2016 учебный год 3 модуль",null,21,3,1,1,1014851738,2098,null,"stCommon",0,"Системы управления и обработки информации в инженерии",{"$f":"MATCH(D6,Отчет!$C$1:$C$65535,0)","v":16}]
[1173992274,6,"МСУ151",1164852314,"Иванов Роман Николаевич","М151МСУОИ018","Асимптотический анализ",3,"Экзамен","2015/2016 учебный год 3 модуль",null,18,3,1,1,1014851738,2098,null,"stCommon",0,"Системы управления и обработки информации в инженерии",{"$f":"MATCH(D7,Отчет!$C$1:$C$65535,0)","v":22}]
[1173992444,9,"МСУ151",1164852327,"Курочкин Роман Игоревич","М151МСУОИ006","Асимптотический анализ",3,"Экзамен","2015/2016 учебный год 3 модуль",null,27,3,1,1,1014851738,2098,null,"stCommon",0,"Системы управления и обработки информации в инженерии",{"$f":"MATCH(D8,Отчет!$C$1:$C$65535,0)","v":12}]
[1173992564,7,null,1164852340,"Лозован Игорь Иванович","М151МСУОИ005","Асимптотический анализ",3,"Экзамен","2015/2016 учебный год 3 модуль",null,21,3,1,1,1014851738,2098,null,"stCommon",0,"Системы управления и обработки информации в инженерии",{"$f":"MATCH(D9,Отчет!$C$1:$C$65535,0)","v":{"$error":"#N/A"}}]
[1173992697,8,"МСУ151",1164852353,"Мурзин Петр Евгеньевич","М151МСУОИ011","Асимптотический анализ",3,"Экзамен","2015/2016 учебный год 3 модуль",null,24,3,1,1,1014851738,2098,null,"stCommon",0,"Системы управления и обработки информации в инженерии",{"$f":"MATCH(D10,Отчет!$C$1:$C$65535,0)","v":20}]
[1173992961,6,"МСУ151",1164852379,"Пименова Екатерина Юрьевна","М151МСУОИ004","Асимптотический анализ",3,"Экзамен","2015/2016 учебный год 3 модуль",null,18,3,1,1,1014851738,2098,null,"stCommon",0,"Системы управления и обработки информации в инженерии",{"$f":"MATCH(D11,Отчет!$C$1:$C$65535,0)","v":18}]
[1173993069,9,"МСУ151",1164852392,"Плотников Станислав Павлович","М151МСУОИ007","Асимптотический анализ",3,"Экзамен","2015/2016 учебный год 3 модуль",null,27,3,1,1,1014851738,2098,null,"stCommon",0,"Системы управления и обработки информации в инженерии",{"$f":"MATCH(D12,Отчет!$C$1:$C$65535,0)","v":13}]
[1173993406,5,"МСУ151",1164852431,"Якимов Илья Михайлович","М151МСУОИ010","Асимптотический анализ",3,"Экзамен","2015/2016 учебный год 3 модуль",null,15,3,1,1,1014851738,2098,null,"stCommon",0,"Системы управления и обработки информации в инженерии",{"$f":"MATCH(D13,Отчет!$C$1:$C$65535,0)","v":25}]
[1173992835,9,"МСУ151",1164852366,"Пак Тарас Евгеньевич","М151МСУОИ003","Асимптотический анализ",3,"Экзамен","2015/2016 учебный год 3 модуль",null,27,3,1,1,1014851738,2098,null,"stCommon",0,"Системы управления и обработки информации в инженерии",{"$f":"MATCH(D14,Отчет!$C$1:$C$65535,0)","v":24}]
[1173993180,6,"МСУ151",1164852405,"Сафонова Элла Владимировна","М151МСУОИ008","Асимптотический анализ",3,"Экзамен","2015/2016 учебный год 3 модуль",null,18,3,1,1,1014851738,2098,null,"stCommon",0,"Системы управления и обработки информации в инженерии",{"$f":"MATCH(D15,Отчет!$C$1:$C$65535,0)","v":17}]
[1173992038,8,"МСУ151",1164852262,"Бережко Валерия Сергеевна","М151МСУОИ015","Асимптотический анализ",3,"Экзамен","2015/2016 учебный год 3 модуль",null,24,3,1,1,1014851738,2098,null,"stCommon",0,"Системы управления и обработки информации в инженерии",{"$f":"MATCH(D16,Отчет!$C$1:$C$65535,0)","v":19}]
[1173992331,9,"МСУ151",1171450447,"Ковалева Анна Сергеевна","М151МСУОИ012","Асимптотический анализ",3,"Экзамен","2015/2016 учебный год 3 модуль",null,27,3,1,0,1014851738,2098,null,"stCommon",0,"Системы управления и обработки информации в инженерии",{"$f":"MATCH(D17,Отчет!$C$1:$C$65535,0)","v":21}]
[1181178453,5,"МСУ151",1178703023,"Парамонов Георгий Константинович","М151МСУОИ019","Асимптотический анализ",3,"Экзамен","2015/2016 учебный год 3 модуль",null,15,3,1,0,1014851738,2098,null,"stCommon",0,"Системы управления и обработки информации в инженерии",{"$f":"MATCH(D18,Отчет!$C$1:$C$65535,0)","v":26}]
[1256517326,9,"МСУ151",1164852275,"Васильева Елена Олеговна","М151МСУОИ016","Анализ данных",3,"Экзамен","2015/2016 учебный год 4 модуль",null,27,3,1,1,1236129457,2098,null,"stChoosen",0,"Системы управления и обработки информации в инженерии",{"$f":"MATCH(D19,Отчет!$C$1:$C$65535,0)","v":15}]
[1256517382,6,"МСУ151",1164852236,"Андреев Владислав Дмитриевич","М151МСУОИ013","Анализ данных",3,"Экзамен","2015/2016 учебный год 4 модуль",null,18,3,1,1,1236129457,2098,null,"stChoosen",0,"Системы управления и обработки информации в инженерии",{"$f":"MATCH(D20,Отчет!$C$1:$C$65535,0)","v":23}]
[1256517378,6,"МСУ151",1164852366,"Пак Тарас Евгеньевич","М151МСУОИ003","Анализ данных",3,"Экзамен","2015/2016 учебный год 4 модуль",null,18,3,1,1,1236129457,2098,null,"stChoosen",0,"Системы управления и обработки информации в инженерии",{"$f":"MATCH(D21,Отчет!$C$1:$C$65535,0)","v":24}]
[1256517366,7,"МСУ151",1164852314,"Иванов Роман Николаевич","М151МСУОИ018","Анализ данных",3,"Экзамен","2015/2016 учебный год 4 модуль",null,21,3,1,1,1236129457,2098,null,"stChoosen",0,"Системы управления и обработки информации в инженерии",{"$f":"MATCH(D22,Отчет!$C$1:$C$65535,0)","v":22}]
[1256517374,7,"МСУ151",1164852392,"Плотников Станислав Павлович","М151МСУОИ007","Анализ данных",3,"Экзамен","2015/2016 учебный год 4 модуль",null,21,3,1,1,1236129457,2098,null,"stChoosen",0,"Системы управления и обработки информации в инженерии",{"$f":"MATCH(D23,Отчет!$C$1:$C$65535,0)","v":13}]
[1256517358,5,"МСУ151",1164852353,"Мурзин Петр Евгеньевич","М151МСУОИ011","Анализ социальных сетей",3,"Экзамен","2015/2016 учебный год 4 модуль",null,15,3,1,1,1236129457,2098,null,"stChoosen",0,"Системы управления и обработки информации в инженерии",{"$f":"MATCH(D24,Отчет!$C$1:$C$65535,0)","v":20}]
[1256517350,4,"МСУ151",1164852431,"Якимов Илья Михайлович","М151МСУОИ010","Государственные закупки: теория для практики",3,"Экзамен","2015/2016 учебный год 4 модуль",null,12,3,1,1,1236129457,2098,null,"stChoosen",0,"Системы управления и обработки информации в инженерии",{"$f":"MATCH(D25,Отчет!$C$1:$C$65535,0)","v":25}]
[1256517370,9,"МСУ151",1164852223,"Алчинова Регина Вячеславовна","М151МСУОИ002","Информационные системы корпоративного управления на платформе 1С",3,"Экзамен","2015/2016 учебный год 4 модуль",null,27,3,1,1,1236129457,2098,null,"stChoosen",0,"Системы управления и обработки информации в инженерии",{"$f":"MATCH(D26,Отчет!$C$1:$C$65535,0)","v":14}]
[1256517338,8,"МСУ151",1178703023,"Парамонов Георгий Константинович","М151МСУОИ019","Информационные системы корпоративного управления на платформе 1С",3,"Экзамен","2015/2016 учебный год 4 модуль",null,24,3,1,0,1236129457,2098,null,"stChoosen",0,"Системы управления и обработки информации в инженерии",{"$f":"MATCH(D27,Отчет!$C$1:$C$65535,0)","v":26}]
[1256517386,9,"МСУ151",1164852262,"Бережко Валерия Сергеевна","М151МСУОИ015","Информационные системы корпоративного управления на платформе 1С",3,"Экзамен","2015/2016 учебный год 4 модуль",null,27,3,1,1,1236129457,2098,null,"stChoosen",0,"Системы управления и обработки информации в инженерии",{"$f":"MATCH(D28,Отчет!$C$1:$C$65535,0)","v":19}]
[1256517318,8,"МСУ151",1171450447,"Ковалева Анна Сергеевна","М151МСУОИ012","Информационные системы корпоративного управления на платформе 1С",3,"Экзамен","2015/2016 учебный год 4 модуль",null,24,3,1,0,1236129457,2098,null,"stChoosen",0,"Системы управления и обработки информации в инженерии",{"$f":"MATCH(D29,Отчет!$C$1:$C$65535,0)","v":21}]
[1173993171,10,"МСУ151",1164852392,"Плотников Станислав Павлович","М151МСУОИ007","Междисциплинарная курсовая работа",4,"Экзамен","2015/2016 учебный год 4 модуль",null,40,4,1,1,1014851738,4308,null,null,0,"Системы управления и обработки информации в инженерии",{"$f":"MATCH(D30,Отчет!$C$1:$C$65535,0)","v":13}]
[1173993060,10,"МСУ151",1164852379,"Пименова Екатерина Юрьевна","М151МСУОИ004","Междисциплинарная курсовая работа",4,"Экзамен","2015/2016 учебный год 4 модуль",null,40,4,1,1,1014851738,4308,null,null,0,"Системы управления и обработки информации в инженерии",{"$f":"MATCH(D31,Отчет!$C$1:$C$65535,0)","v":18}]
[1173992821,7,"МСУ151",1164852353,"Мурзин Петр Евгеньевич","М151МСУОИ011","Междисциплинарная курсовая работа",4,"Экзамен","2015/2016 учебный год 4 модуль",null,0,4,1,1,1014851738,4308,null,null,0,"Системы управления и обработки информации в инженерии",{"$f":"MATCH(D32,Отчет!$C$1:$C$65535,0)","v":20}]
[1181178503,8,"МСУ151",1178703023,"Парамонов Георгий Константинович","М151МСУОИ019","Междисциплинарная курсовая работа",4,"Экзамен","2015/2016 учебный год 4 модуль",null,32,4,1,0,1014851738,4308,null,null,0,"Системы управления и обработки информации в инженерии",{"$f":"MATCH(D33,Отчет!$C$1:$C$65535,0)","v":26}]
[1173992437,9,"МСУ151",1171450447,"Ковалева Анна Сергеевна","М151МСУОИ012","Междисциплинарная курсовая работа",4,"Экзамен","2015/2016 учебный год 4 модуль",null,36,4,1,0,1014851738,4308,null,null,0,"Системы управления и обработки информации в инженерии",{"$f":"MATCH(D34,Отчет!$C$1:$C$65535,0)","v":21}]
[1173992094,8,"МСУ151",1164852262,"Бережко Валерия Сергеевна","М151МСУОИ015","Междисциплинарная курсовая работа",4,"Экзамен","2015/2016 учебный год 4 модуль",null,32,4,1,1,1014851738,4308,null,null,0,"Системы управления и обработки информации в инженерии",{"$f":"MATCH(D35,Отчет!$C$1:$C$65535,0)","v":19}]
[1173993285,10,"МСУ151",1164852405,"Сафонова Элла Владимировна","М151МСУОИ008","Междисциплинарная курсовая работа",4,"Экзамен","2015/2016 учебный год 4 модуль",null,40,4,1,1,1014851738,4308,null,null,0,"Системы управления и обработки информации в инженерии",{"$f":"MATCH(D36,Отчет!$C$1:$C$65535,0)","v":17}]
[1173992551,10,"МСУ151",1164852327,"Курочкин Роман Игоревич","М151МСУОИ006","Междисциплинарная курсовая работа",4,"Экзамен","2015/2016 учебный год 4 модуль",null,40,4,1,1,1014851738,4308,null,null,0,"Системы управления и обработки информации в инженерии",{"$f":"MATCH(D37,Отчет!$C$1:$C$65535,0)","v":12}]
[1173992684,9,null,1164852340,"Лозован Игорь Иванович","М151МСУОИ005","Междисциплинарная курсовая работа",4,"Экзамен","2015/2016 учебный год 4 модуль",null,36,4,1,1,1014851738,4308,null,null,0,"Системы управления и обработки информации в инженерии",{"$f":"MATCH(D38,Отчет!$C$1:$C$65535,0)","v":{"$error":"#N/A"}}]
[1173992327,8,"МСУ151",1164852314,"Иванов Роман Николаевич","М151МСУОИ018","Междисциплинарная курсовая работа",4,"Экзамен","2015/2016 учебный год 4 модуль",null,0,4,1,1,1014851738,4308,null,null,0,"Системы управления и обработки информации в инженерии",{"$f":"MATCH(D39,Отчет!$C$1:$C$65535,0)","v":22}]
[1173992270,9,"МСУ151",1164852301,"Голованова Анастасия Юрьевна","М151МСУОИ001","Междисциплинарная курсовая работа",4,"Экзамен","2015/2016 учебный год 4 модуль",null,36,4,1,1,1014851738,4308,null,null,0,"Системы управления и обработки информации в инженерии",{"$f":"MATCH(D40,Отчет!$C$1:$C$65535,0)","v":16}]
[1173992153,8,"МСУ151",1164852275,"Васильева Елена Олеговна","М151МСУОИ016","Междисциплинарная курсовая работа",4,"Экзамен","2015/2016 учебный год 4 модуль",null,32,4,1,1,1014851738,4308,null,null,0,"Системы управления и обработки информации в инженерии",{"$f":"MATCH(D41,Отчет!$C$1:$C$65535,0)","v":15}]
[1173991977,8,"МСУ151",1164852236,"Андреев Владислав Дмитриевич","М151МСУОИ013","Междисциплинарная курсовая работа",4,"Экзамен","2015/2016 учебный год 4 модуль",null,32,4,1,1,1014851738,4308,null,null,0,"Системы управления и обработки информации в инженерии",{"$f":"MATCH(D42,Отчет!$C$1:$C$65535,0)","v":23}]
[1173991923,8,"МСУ151",1164852223,"Алчинова Регина Вячеславовна","М151МСУОИ002","Междисциплинарная курсовая работа",4,"Экзамен","2015/2016 учебный год 4 модуль",null,32,4,1,1,1014851738,4308,null,null,0,"Системы управления и обработки информации в инженерии",{"$f":"MATCH(D43,Отчет!$C$1:$C$65535,0)","v":14}]
[1173992953,5,"МСУ151",1164852366,"Пак Тарас Евгеньевич","М151МСУОИ003","Междисциплинарная курсовая работа",4,"Экзамен","2015/2016 учебный год 4 модуль",null,20,4,1,1,1014851738,4308,null,null,0,"Системы управления и обработки информации в инженерии",{"$f":"MATCH(D44,Отчет!$C$1:$C$65535,0)","v":24}]
[1173993513,8,"МСУ151",1164852431,"Якимов Илья Михайлович","М151МСУОИ010","Междисциплинарная курсовая работа",4,"Экзамен","2015/2016 учебный год 4 модуль",null,32,4,1,1,1014851738,4308,null,null,0,"Системы управления и обработки информации в инженерии",{"$f":"MATCH(D45,Отчет!$C$1:$C$65535,0)","v":25}]
[1173992075,7,"МСУ151",1164852262,"Бережко Валерия Сергеевна","М151МСУОИ015","Научно-исследовательская работа",9,"Экзамен","2015/2016 учебный год 4 модуль",null,63,9,1,1,1014851738,2098,null,"stCommon",0,"Системы управления и обработки информации в инженерии",{"$f":"MATCH(D46,Отчет!$C$1:$C$65535,0)","v":19}]
[1173993134,9,"МСУ151",1164852392,"Плотников Станислав Павлович","М151МСУОИ007","Научно-исследовательская работа",9,"Экзамен","2015/2016 учебный год 4 модуль",null,81,9,1,1,1014851738,2098,null,"stCommon",0,"Системы управления и обработки информации в инженерии",{"$f":"MATCH(D47,Отчет!$C$1:$C$65535,0)","v":13}]
[1173991959,8,"МСУ151",1164852236,"Андреев Владислав Дмитриевич","М151МСУОИ013","Научно-исследовательская работа",9,"Экзамен","2015/2016 учебный год 4 модуль",null,72,9,1,1,1014851738,2098,null,"stCommon",0,"Системы управления и обработки информации в инженерии",{"$f":"MATCH(D48,Отчет!$C$1:$C$65535,0)","v":23}]
[1173992308,7,"МСУ151",1164852314,"Иванов Роман Николаевич","М151МСУОИ018","Научно-исследовательская работа",9,"Экзамен","2015/2016 учебный год 4 модуль",null,63,9,1,1,1014851738,2098,null,"stCommon",0,"Системы управления и обработки информации в инженерии",{"$f":"MATCH(D49,Отчет!$C$1:$C$65535,0)","v":22}]
[1181178485,7,"МСУ151",1178703023,"Парамонов Георгий Константинович","М151МСУОИ019","Научно-исследовательская работа",9,"Экзамен","2015/2016 учебный год 4 модуль",null,63,9,1,0,1014851738,2098,null,"stCommon",0,"Системы управления и обработки информации в инженерии",{"$f":"MATCH(D50,Отчет!$C$1:$C$65535,0)","v":26}]
[1173992134,7,"МСУ151",1164852275,"Васильева Елена Олеговна","М151МСУОИ016","Научно-исследовательская работа",9,"Экзамен","2015/2016 учебный год 4 модуль",null,63,9,1,1,1014851738,2098,null,"stCommon",0,"Системы управления и обработки информации в инженерии",{"$f":"MATCH(D51,Отчет!$C$1:$C$65535,0)","v":15}]
[1173992510,9,"МСУ151",1164852327,"Курочкин Роман Игоревич","М151МСУОИ006","Научно-исследовательская работа",9,"Экзамен","2015/2016 учебный год 4 модуль",null,81,9,1,1,1014851738,2098,null,"stCommon",0,"Системы управления и обработки информации в инженерии",{"$f":"MATCH(D52,Отчет!$C$1:$C$65535,0)","v":12}]
[1173991904,8,"МСУ151",1164852223,"Алчинова Регина Вячеславовна","М151МСУОИ002","Научно-исследовательская работа",9,"Экзамен","2015/2016 учебный год 4 модуль",null,72,9,1,1,1014851738,2098,null,"stCommon",0,"Системы управления и обработки информации в инженерии",{"$f":"MATCH(D53,Отчет!$C$1:$C$65535,0)","v":14}]
[1173993248,8,"МСУ151",1164852405,"Сафонова Элла Владимировна","М151МСУОИ008","Научно-исследовательская работа",9,"Экзамен","2015/2016 учебный год 4 модуль",null,72,9,1,1,1014851738,2098,null,"stCommon",0,"Системы управления и обработки информации в инженерии",{"$f":"MATCH(D54,Отчет!$C$1:$C$65535,0)","v":17}]
[1173992775,8,"МСУ151",1164852353,"Мурзин Петр Евгеньевич","М151МСУОИ011","Научно-исследовательская работа",9,"Экзамен","2015/2016 учебный год 4 модуль",null,72,9,1,1,1014851738,2098,null,"stCommon",0,"Системы управления и обработки информации в инженерии",{"$f":"MATCH(D55,Отчет!$C$1:$C$65535,0)","v":20}]
[1173992250,7,"МСУ151",1164852301,"Голованова Анастасия Юрьевна","М151МСУОИ001","Научно-исследовательская работа",9,"Экзамен","2015/2016 учебный год 4 модуль",null,63,9,1,1,1014851738,2098,null,"stCommon",0,"Системы управления и обработки информации в инженерии",{"$f":"MATCH(D56,Отчет!$C$1:$C$65535,0)","v":16}]
[1173992912,7,"МСУ151",1164852366,"Пак Тарас Евгеньевич","М151МСУОИ003","Научно-исследовательская работа",9,"Экзамен","2015/2016 учебный год 4 модуль",null,63,9,1,1,1014851738,2098,null,"stCommon",0,"Системы управления и обработки информации в инженерии",{"$f":"MATCH(D57,Отчет!$C$1:$C$65535,0)","v":24}]
[1173993025,7,"МСУ151",1164852379,"Пименова Екатерина Юрьевна","М151МСУОИ004","Научно-исследовательская работа",9,"Экзамен","2015/2016 учебный год 4 модуль",null,63,9,1,1,1014851738,2098,null,"stCommon",0,"Системы управления и обработки информации в инженерии",{"$f":"MATCH(D58,Отчет!$C$1:$C$65535,0)","v":18}]
[1173992394,7,"МСУ151",1171450447,"Ковалева Анна Сергеевна","М151МСУОИ012","Научно-исследовательская работа",9,"Экзамен","2015/2016 учебный год 4 модуль",null,63,9,1,0,1014851738,2098,null,"stCommon",0,"Системы управления и обработки информации в инженерии",{"$f":"MATCH(D59,Отчет!$C$1:$C$65535,0)","v":21}]
[1173993476,8,"МСУ151",1164852431,"Якимов Илья Михайлович","М151МСУОИ010","Научно-исследовательская работа",9,"Экзамен","2015/2016 учебный год 4 модуль",null,72,9,1,1,1014851738,2098,null,"stCommon",0,"Системы управления и обработки информации в инженерии",{"$f":"MATCH(D60,Отчет!$C$1:$C$65535,0)","v":25}]
[1173992638,9,null,1164852340,"Лозован Игорь Иванович","М151МСУОИ005","Научно-исследовательская работа",9,"Экзамен","2015/2016 учебный год 4 модуль",null,81,9,1,1,1014851738,2098,null,"stCommon",0,"Системы управления и обработки информации в инженерии",{"$f":"MATCH(D61,Отчет!$C$1:$C$65535,0)","v":{"$error":"#N/A"}}]
[1173992055,7,"МСУ151",1164852262,"Бережко Валерия Сергеевна","М151МСУОИ015","Научно-исследовательский семинар",8,"Экзамен","2015/2016 учебный год 4 модуль",null,56,8,1,1,1014851738,2098,null,"stCommon",0,"Системы управления и обработки информации в инженерии",{"$f":"MATCH(D62,Отчет!$C$1:$C$65535,0)","v":19}]
[1173992357,7,"МСУ151",1171450447,"Ковалева Анна Сергеевна","М151МСУОИ012","Научно-исследовательский семинар",8,"Экзамен","2015/2016 учебный год 4 модуль",null,56,8,1,0,1014851738,2098,null,"stCommon",0,"Системы управления и обработки информации в инженерии",{"$f":"MATCH(D63,Отчет!$C$1:$C$65535,0)","v":21}]
[1181178469,7,"МСУ151",1178703023,"Парамонов Георгий Константинович","М151МСУОИ019","Научно-исследовательский семинар",8,"Экзамен","2015/2016 учебный год 4 модуль",null,56,8,1,0,1014851738,2098,null,"stCommon",0,"Системы управления и обработки информации в инженерии",{"$f":"MATCH(D64,Отчет!$C$1:$C$65535,0)","v":26}]
[1173992599,9,null,1164852340,"Лозован Игорь Иванович","М151МСУОИ005","Научно-исследовательский семинар",8,"Экзамен","2015/2016 учебный год 4 модуль",null,72,8,1,1,1014851738,2098,null,"stCommon",0,"Системы управления и обработки информации в инженерии",{"$f":"MATCH(D65,Отчет!$C$1:$C$65535,0)","v":{"$error":"#N/A"}}]
[1173992736,8,"МСУ151",1164852353,"Мурзин Петр Евгеньевич","М151МСУОИ011","Научно-исследовательский семинар",8,"Экзамен","2015/2016 учебный год 4 модуль",null,64,8,1,1,1014851738,2098,null,"stCommon",0,"Системы управления и обработки информации в инженерии",{"$f":"MATCH(D66,Отчет!$C$1:$C$65535,0)","v":20}]
[1173992994,7,"МСУ151",1164852379,"Пименова Екатерина Юрьевна","М151МСУОИ004","Научно-исследовательский семинар",8,"Экзамен","2015/2016 учебный год 4 модуль",null,56,8,1,1,1014851738,2098,null,"stCommon",0,"Системы управления и обработки информации в инженерии",{"$f":"MATCH(D67,Отчет!$C$1:$C$65535,0)","v":18}]
[1173993102,9,"МСУ151",1164852392,"Плотников Станислав Павлович","М151МСУОИ007","Научно-исследовательский семинар",8,"Экзамен","2015/2016 учебный год 4 модуль",null,72,8,1,1,1014851738,2098,null,"stCommon",0,"Системы управления и обработки информации в инженерии",{"$f":"MATCH(D68,Отчет!$C$1:$C$65535,0)","v":13}]
[1173993441,8,"МСУ151",1164852431,"Якимов Илья Михайлович","М151МСУОИ010","Научно-исследовательский семинар",8,"Экзамен","2015/2016 учебный год 4 модуль",null,64,8,1,1,1014851738,2098,null,"stCommon",0,"Системы управления и обработки информации в инженерии",{"$f":"MATCH(D69,Отчет!$C$1:$C$65535,0)","v":25}]
[1173992871,7,"МСУ151",1164852366,"Пак Тарас Евгеньевич","М151МСУОИ003","Научно-исследовательский семинар",8,"Экзамен","2015/2016 учебный год 4 модуль",null,56,8,1,1,1014851738,2098,null,"stCommon",0,"Системы управления и обработки информации в инженерии",{"$f":"MATCH(D70,Отчет!$C$1:$C$65535,0)","v":24}]
[1173993215,8,"МСУ151",1164852405,"Сафонова Элла Владимировна","М151МСУОИ008","Научно-исследовательский семинар",8,"Экзамен","2015/2016 учебный год 4 модуль",null,64,8,1,1,1014851738,2098,null,"stCommon",0,"Системы управления и обработки информации в инженерии",{"$f":"MATCH(D71,Отчет!$C$1:$C$65535,0)","v":17}]
[1173991886,8,"МСУ151",1164852223,"Алчинова Регина Вячеславовна","М151МСУОИ002","Научно-исследовательский семинар",8,"Экзамен","2015/2016 учебный год 4 модуль",null,64,8,1,1,1014851738,2098,null,"stCommon",0,"Системы управления и обработки информации в инженерии",{"$f":"MATCH(D72,Отчет!$C$1:$C$65535,0)","v":14}]
[1173991943,8,"МСУ151",1164852236,"Андреев Владислав Дмитриевич","М151МСУОИ013","Научно-исследовательский семинар",8,"Экзамен","2015/2016 учебный год 4 модуль",null,64,8,1,1,1014851738,2098,null,"stCommon",0,"Системы управления и обработки информации в инженерии",{"$f":"MATCH(D73,Отчет!$C$1:$C$65535,0)","v":23}]
[1173992116,7,"МСУ151",1164852275,"Васильева Елена Олеговна","М151МСУОИ016","Научно-исследовательский семинар",8,"Экзамен","2015/2016 учебный год 4 модуль",null,56,8,1,1,1014851738,2098,null,"stCommon",0,"Системы управления и обработки информации в инженерии",{"$f":"MATCH(D74,Отчет!$C$1:$C$65535,0)","v":15}]
[1173992233,7,"МСУ151",1164852301,"Голованова Анастасия Юрьевна","М151МСУОИ001","Научно-исследовательский семинар",8,"Экзамен","2015/2016 учебный год 4 модуль",null,56,8,1,1,1014851738,2098,null,"stCommon",0,"Системы управления и обработки информации в инженерии",{"$f":"MATCH(D75,Отчет!$C$1:$C$65535,0)","v":16}]
[1173992291,7,"МСУ151",1164852314,"Иванов Роман Николаевич","М151МСУОИ018","Научно-исследовательский семинар",8,"Экзамен","2015/2016 учебный год 4 модуль",null,56,8,1,1,1014851738,2098,null,"stCommon",0,"Системы управления и обработки информации в инженерии",{"$f":"MATCH(D76,Отчет!$C$1:$C$65535,0)","v":22}]
[1173992475,9,"МСУ151",1164852327,"Курочкин Роман Игоревич","М151МСУОИ006","Научно-исследовательский семинар",8,"Экзамен","2015/2016 учебный год 4 модуль",null,72,8,1,1,1014851738,2098,null,"stCommon",0,"Системы управления и обработки информации в инженерии",{"$f":"MATCH(D77,Отчет!$C$1:$C$65535,0)","v":12}]
[1256517362,9,"МСУ151",1164852327,"Курочкин Роман Игоревич","М151МСУОИ006","Основы астрономии",3,"Экзамен","2015/2016 учебный год 4 модуль",null,27,3,1,1,1236129457,2098,null,"stChoosen",0,"Системы управления и обработки информации в инженерии",{"$f":"MATCH(D78,Отчет!$C$1:$C$65535,0)","v":12}]
[1256517342,6,null,1164852340,"Лозован Игорь Иванович","М151МСУОИ005","Основы астрономии",3,"Экзамен","2015/2016 учебный год 4 модуль",null,18,3,1,1,1236129457,2098,null,"stChoosen",0,"Системы управления и обработки информации в инженерии",{"$f":"MATCH(D79,Отчет!$C$1:$C$65535,0)","v":{"$error":"#N/A"}}]
[1173992483,10,"МСУ151",1164852327,"Курочкин Роман Игоревич","М151МСУОИ006","Параллельное и распределенное программирование",4,"Экзамен","2015/2016 учебный год 4 модуль",null,40,4,1,1,1014851738,2098,null,"stCommon",0,"Системы управления и обработки информации в инженерии",{"$f":"MATCH(D80,Отчет!$C$1:$C$65535,0)","v":12}]
[1173992060,6,"МСУ151",1164852262,"Бережко Валерия Сергеевна","М151МСУОИ015","Параллельное и распределенное программирование",4,"Экзамен","2015/2016 учебный год 4 модуль",null,24,4,1,1,1014851738,2098,null,"stCommon",0,"Системы управления и обработки информации в инженерии",{"$f":"MATCH(D81,Отчет!$C$1:$C$65535,0)","v":19}]
[1173992295,10,"МСУ151",1164852314,"Иванов Роман Николаевич","М151МСУОИ018","Параллельное и распределенное программирование",4,"Экзамен","2015/2016 учебный год 4 модуль",null,40,4,1,1,1014851738,2098,null,"stCommon",0,"Системы управления и обработки информации в инженерии",{"$f":"MATCH(D82,Отчет!$C$1:$C$65535,0)","v":22}]
[1173992609,4,null,1164852340,"Лозован Игорь Иванович","М151МСУОИ005","Параллельное и распределенное программирование",4,"Экзамен","2015/2016 учебный год 4 модуль",null,16,4,1,1,1014851738,2098,null,"stCommon",0,"Системы управления и обработки информации в инженерии",{"$f":"MATCH(D83,Отчет!$C$1:$C$65535,0)","v":{"$error":"#N/A"}}]
[1173992237,8,"МСУ151",1164852301,"Голованова Анастасия Юрьевна","М151МСУОИ001","Параллельное и распределенное программирование",4,"Экзамен","2015/2016 учебный год 4 модуль",null,32,4,1,1,1014851738,2098,null,"stCommon",0,"Системы управления и обработки информации в инженерии",{"$f":"MATCH(D84,Отчет!$C$1:$C$65535,0)","v":16}]
[1173993110,10,"МСУ151",1164852392,"Плотников Станислав Павлович","М151МСУОИ007","Параллельное и распределенное программирование",4,"Экзамен","2015/2016 учебный год 4 модуль",null,40,4,1,1,1014851738,2098,null,"stCommon",0,"Системы управления и обработки информации в инженерии",{"$f":"MATCH(D85,Отчет!$C$1:$C$65535,0)","v":13}]
[1173992121,8,"МСУ151",1164852275,"Васильева Елена Олеговна","М151МСУОИ016","Параллельное и распределенное программирование",4,"Экзамен","2015/2016 учебный год 4 модуль",null,32,4,1,1,1014851738,2098,null,"stCommon",0,"Системы управления и обработки информации в инженерии",{"$f":"MATCH(D86,Отчет!$C$1:$C$65535,0)","v":15}]
[1173992365,6,"МСУ151",1171450447,"Ковалева Анна Сергеевна","М151МСУОИ012","Параллельное и распределенное программирование",4,"Экзамен","2015/2016 учебный год 4 модуль",null,24,4,1,0,1014851738,2098,null,"stCommon",0,"Системы управления и обработки информации в инженерии",{"$f":"MATCH(D87,Отчет!$C$1:$C$65535,0)","v":21}]
[1173991947,6,"МСУ151",1164852236,"Андреев Владислав Дмитриевич","М151МСУОИ013","Параллельное и распределенное программирование",4,"Экзамен","2015/2016 учебный год 4 модуль",null,24,4,1,1,1014851738,2098,null,"stCommon",0,"Системы управления и обработки информации в инженерии",{"$f":"MATCH(D88,Отчет!$C$1:$C$65535,0)","v":23}]
[1173993001,6,"МСУ151",1164852379,"Пименова Екатерина Юрьевна","М151МСУОИ004","Параллельное и распределенное программирование",4,"Экзамен","2015/2016 учебный год 4 модуль",null,24,4,1,1,1014851738,2098,null,"stCommon",0,"Системы управления и обработки информации в инженерии",{"$f":"MATCH(D89,Отчет!$C$1:$C$65535,0)","v":18}]
[1173991891,8,"МСУ151",1164852223,"Алчинова Регина Вячеславовна","М151МСУОИ002","Параллельное и распределенное программирование",4,"Экзамен","2015/2016 учебный год 4 модуль",null,32,4,1,1,1014851738,2098,null,"stCommon",0,"Системы управления и обработки информации в инженерии",{"$f":"MATCH(D90,Отчет!$C$1:$C$65535,0)","v":14}]
[1181178473,4,"МСУ151",1178703023,"Парамонов Георгий Константинович","М151МСУОИ019","Параллельное и распределенное программирование",4,"Экзамен","2015/2016 учебный год 4 модуль",null,16,4,1,0,1014851738,2098,null,"stCommon",0,"Системы управления и обработки информации в инженерии",{"$f":"MATCH(D91,Отчет!$C$1:$C$65535,0)","v":26}]
[1173993223,6,"МСУ151",1164852405,"Сафонова Элла Владимировна","М151МСУОИ008","Параллельное и распределенное программирование",4,"Экзамен","2015/2016 учебный год 4 модуль",null,24,4,1,1,1014851738,2098,null,"stCommon",0,"Системы управления и обработки информации в инженерии",{"$f":"MATCH(D92,Отчет!$C$1:$C$65535,0)","v":17}]
[1173992744,6,"МСУ151",1164852353,"Мурзин Петр Евгеньевич","М151МСУОИ011","Параллельное и распределенное программирование",4,"Экзамен","2015/2016 учебный год 4 модуль",null,24,4,1,1,1014851738,2098,null,"stCommon",0,"Системы управления и обработки информации в инженерии",{"$f":"MATCH(D93,Отчет!$C$1:$C$65535,0)","v":20}]
[1173992881,6,"МСУ151",1164852366,"Пак Тарас Евгеньевич","М151МСУОИ003","Параллельное и распределенное программирование",4,"Экзамен","2015/2016 учебный год 4 модуль",null,24,4,1,1,1014851738,2098,null,"stCommon",0,"Системы управления и обработки информации в инженерии",{"$f":"MATCH(D94,Отчет!$C$1:$C$65535,0)","v":24}]
[1173993449,6,"МСУ151",1164852431,"Якимов Илья Михайлович","М151МСУОИ010","Параллельное и распределенное программирование",4,"Экзамен","2015/2016 учебный год 4 модуль",null,24,4,1,1,1014851738,2098,null,"stCommon",0,"Системы управления и обработки информации в инженерии",{"$f":"MATCH(D95,Отчет!$C$1:$C$65535,0)","v":25}]
[1173992300,8,"МСУ151",1164852314,"Иванов Роман Николаевич","М151МСУОИ018","Перспективные аналитические исследования в глобальных сетях",3,"Экзамен","2015/2016 учебный год 4 модуль",null,24,3,1,1,1014851738,2098,null,"stCommon",0,"Системы управления и обработки информации в инженерии",{"$f":"MATCH(D96,Отчет!$C$1:$C$65535,0)","v":22}]
[1173992241,9,"МСУ151",1164852301,"Голованова Анастасия Юрьевна","М151МСУОИ001","Перспективные аналитические исследования в глобальных сетях",3,"Экзамен","2015/2016 учебный год 4 модуль",null,27,3,1,1,1014851738,2098,null,"stCommon",0,"Системы управления и обработки информации в инженерии",{"$f":"MATCH(D97,Отчет!$C$1:$C$65535,0)","v":16}]
[1173992125,9,"МСУ151",1164852275,"Васильева Елена Олеговна","М151МСУОИ016","Перспективные аналитические исследования в глобальных сетях",3,"Экзамен","2015/2016 учебный год 4 модуль",null,27,3,1,1,1014851738,2098,null,"stCommon",0,"Системы управления и обработки информации в инженерии",{"$f":"MATCH(D98,Отчет!$C$1:$C$65535,0)","v":15}]
[1173991951,8,"МСУ151",1164852236,"Андреев Владислав Дмитриевич","М151МСУОИ013","Перспективные аналитические исследования в глобальных сетях",3,"Экзамен","2015/2016 учебный год 4 модуль",null,24,3,1,1,1014851738,2098,null,"stCommon",0,"Системы управления и обработки информации в инженерии",{"$f":"MATCH(D99,Отчет!$C$1:$C$65535,0)","v":23}]
[1173991896,8,"МСУ151",1164852223,"Алчинова Регина Вячеславовна","М151МСУОИ002","Перспективные аналитические исследования в глобальных сетях",3,"Экзамен","2015/2016 учебный год 4 модуль",null,24,3,1,1,1014851738,2098,null,"stCommon",0,"Системы управления и обработки информации в инженерии",{"$f":"MATCH(D100,Отчет!$C$1:$C$65535,0)","v":14}]
[1173993231,9,"МСУ151",1164852405,"Сафонова Элла Владимировна","М151МСУОИ008","Перспективные аналитические исследования в глобальных сетях",3,"Экзамен","2015/2016 учебный год 4 модуль",null,27,3,1,1,1014851738,2098,null,"stCommon",0,"Системы управления и обработки информации в инженерии",{"$f":"MATCH(D101,Отчет!$C$1:$C$65535,0)","v":17}]
[1173992891,10,"МСУ151",1164852366,"Пак Тарас Евгеньевич","М151МСУОИ003","Перспективные аналитические исследования в глобальных сетях",3,"Экзамен","2015/2016 учебный год 4 модуль",null,30,3,1,1,1014851738,2098,null,"stCommon",0,"Системы управления и обработки информации в инженерии",{"$f":"MATCH(D102,Отчет!$C$1:$C$65535,0)","v":24}]
[1173993459,8,"МСУ151",1164852431,"Якимов Илья Михайлович","М151МСУОИ010","Перспективные аналитические исследования в глобальных сетях",3,"Экзамен","2015/2016 учебный год 4 модуль",null,24,3,1,1,1014851738,2098,null,"stCommon",0,"Системы управления и обработки информации в инженерии",{"$f":"MATCH(D103,Отчет!$C$1:$C$65535,0)","v":25}]
[1173993118,10,"МСУ151",1164852392,"Плотников Станислав Павлович","М151МСУОИ007","Перспективные аналитические исследования в глобальных сетях",3,"Экзамен","2015/2016 учебный год 4 модуль",null,30,3,1,1,1014851738,2098,null,"stCommon",0,"Системы управления и обработки информации в инженерии",{"$f":"MATCH(D104,Отчет!$C$1:$C$65535,0)","v":13}]
[1173993009,8,"МСУ151",1164852379,"Пименова Екатерина Юрьевна","М151МСУОИ004","Перспективные аналитические исследования в глобальных сетях",3,"Экзамен","2015/2016 учебный год 4 модуль",null,24,3,1,1,1014851738,2098,null,"stCommon",0,"Системы управления и обработки информации в инженерии",{"$f":"MATCH(D105,Отчет!$C$1:$C$65535,0)","v":18}]
[1173992753,8,"МСУ151",1164852353,"Мурзин Петр Евгеньевич","М151МСУОИ011","Перспективные аналитические исследования в глобальных сетях",3,"Экзамен","2015/2016 учебный год 4 модуль",null,24,3,1,1,1014851738,2098,null,"stCommon",0,"Системы управления и обработки информации в инженерии",{"$f":"MATCH(D106,Отчет!$C$1:$C$65535,0)","v":20}]
[1173992618,9,null,1164852340,"Лозован Игорь Иванович","М151МСУОИ005","Перспективные аналитические исследования в глобальных сетях",3,"Экзамен","2015/2016 учебный год 4 модуль",null,27,3,1,1,1014851738,2098,null,"stCommon",0,"Системы управления и обработки информации в инженерии",{"$f":"MATCH(D107,Отчет!$C$1:$C$65535,0)","v":{"$error":"#N/A"}}]
[1181178477,8,"МСУ151",1178703023,"Парамонов Георгий Константинович","М151МСУОИ019","Перспективные аналитические исследования в глобальных сетях",3,"Экзамен","2015/2016 учебный год 4 модуль",null,24,3,1,0,1014851738,2098,null,"stCommon",0,"Системы управления и обработки информации в инженерии",{"$f":"MATCH(D108,Отчет!$C$1:$C$65535,0)","v":26}]
[1173992375,8,"МСУ151",1171450447,"Ковалева Анна Сергеевна","М151МСУОИ012","Перспективные аналитические исследования в глобальных сетях",3,"Экзамен","2015/2016 учебный год 4 модуль",null,24,3,1,0,1014851738,2098,null,"stCommon",0,"Системы управления и обработки информации в инженерии",{"$f":"MATCH(D109,Отчет!$C$1:$C$65535,0)","v":21}]
[1173992493,10,"МСУ151",1164852327,"Курочкин Роман Игоревич","М151МСУОИ006","Перспективные аналитические исследования в глобальных сетях",3,"Экзамен","2015/2016 учебный год 4 модуль",null,30,3,1,1,1014851738,2098,null,"stCommon",0,"Системы управления и обработки информации в инженерии",{"$f":"MATCH(D110,Отчет!$C$1:$C$65535,0)","v":12}]
[1173992064,8,"МСУ151",1164852262,"Бережко Валерия Сергеевна","М151МСУОИ015","Перспективные аналитические исследования в глобальных сетях",3,"Экзамен","2015/2016 учебный год 4 модуль",null,24,3,1,1,1014851738,2098,null,"stCommon",0,"Системы управления и обработки информации в инженерии",{"$f":"MATCH(D111,Отчет!$C$1:$C$65535,0)","v":19}]
[1173992047,8,"МСУ151",1164852262,"Бережко Валерия Сергеевна","М151МСУОИ015","Стохастические методы в инженерных приложениях",4,"Экзамен","2015/2016 учебный год 4 модуль",null,32,4,1,1,1014851738,2098,null,"stCommon",0,"Системы управления и обработки информации в инженерии",{"$f":"MATCH(D112,Отчет!$C$1:$C$65535,0)","v":19}]
[1173992582,7,null,1164852340,"Лозован Игорь Иванович","М151МСУОИ005","Стохастические методы в инженерных приложениях",4,"Экзамен","2015/2016 учебный год 4 модуль",null,28,4,1,1,1014851738,2098,null,"stCommon",0,"Системы управления и обработки информации в инженерии",{"$f":"MATCH(D113,Отчет!$C$1:$C$65535,0)","v":{"$error":"#N/A"}}]
[1181178461,4,"МСУ151",1178703023,"Парамонов Георгий Константинович","М151МСУОИ019","Стохастические методы в инженерных приложениях",4,"Экзамен","2015/2016 учебный год 4 модуль",null,16,4,1,0,1014851738,2098,null,"stCommon",0,"Системы управления и обработки информации в инженерии",{"$f":"MATCH(D114,Отчет!$C$1:$C$65535,0)","v":26}]
[1173992715,5,"МСУ151",1164852353,"Мурзин Петр Евгеньевич","М151МСУОИ011","Стохастические методы в инженерных приложениях",4,"Экзамен","2015/2016 учебный год 4 модуль",null,20,4,1,1,1014851738,2098,null,"stCommon",0,"Системы управления и обработки информации в инженерии",{"$f":"MATCH(D115,Отчет!$C$1:$C$65535,0)","v":20}]
[1173992978,8,"МСУ151",1164852379,"Пименова Екатерина Юрьевна","М151МСУОИ004","Стохастические методы в инженерных приложениях",4,"Экзамен","2015/2016 учебный год 4 модуль",null,32,4,1,1,1014851738,2098,null,"stCommon",0,"Системы управления и обработки информации в инженерии",{"$f":"MATCH(D116,Отчет!$C$1:$C$65535,0)","v":18}]
[1173993087,8,"МСУ151",1164852392,"Плотников Станислав Павлович","М151МСУОИ007","Стохастические методы в инженерных приложениях",4,"Экзамен","2015/2016 учебный год 4 модуль",null,32,4,1,1,1014851738,2098,null,"stCommon",0,"Системы управления и обработки информации в инженерии",{"$f":"MATCH(D117,Отчет!$C$1:$C$65535,0)","v":13}]
[1173993425,4,"МСУ151",1164852431,"Якимов Илья Михайлович","М151МСУОИ010","Стохастические методы в инженерных приложениях",4,"Экзамен","2015/2016 учебный год 4 модуль",null,16,4,1,1,1014851738,2098,null,"stCommon",0,"Системы управления и обработки информации в инженерии",{"$f":"MATCH(D118,Отчет!$C$1:$C$65535,0)","v":25}]
[1173992852,6,"МСУ151",1164852366,"Пак Тарас Евгеньевич","М151МСУОИ003","Стохастические методы в инженерных приложениях",4,"Экзамен","2015/2016 учебный год 4 модуль",null,24,4,1,1,1014851738,2098,null,"stCommon",0,"Системы управления и обработки информации в инженерии",{"$f":"MATCH(D119,Отчет!$C$1:$C$65535,0)","v":24}]
[1173993198,7,"МСУ151",1164852405,"Сафонова Элла Владимировна","М151МСУОИ008","Стохастические методы в инженерных приложениях",4,"Экзамен","2015/2016 учебный год 4 модуль",null,28,4,1,1,1014851738,2098,null,"stCommon",0,"Системы управления и обработки информации в инженерии",{"$f":"MATCH(D120,Отчет!$C$1:$C$65535,0)","v":17}]
[1173991878,6,"МСУ151",1164852223,"Алчинова Регина Вячеславовна","М151МСУОИ002","Стохастические методы в инженерных приложениях",4,"Экзамен","2015/2016 учебный год 4 модуль",null,24,4,1,1,1014851738,2098,null,"stCommon",0,"Системы управления и обработки информации в инженерии",{"$f":"MATCH(D121,Отчет!$C$1:$C$65535,0)","v":14}]
[1173991935,4,"МСУ151",1164852236,"Андреев Владислав Дмитриевич","М151МСУОИ013","Стохастические методы в инженерных приложениях",4,"Экзамен","2015/2016 учебный год 4 модуль",null,16,4,1,1,1014851738,2098,null,"stCommon",0,"Системы управления и обработки информации в инженерии",{"$f":"MATCH(D122,Отчет!$C$1:$C$65535,0)","v":23}]
[1173992108,8,"МСУ151",1164852275,"Васильева Елена Олеговна","М151МСУОИ016","Стохастические методы в инженерных приложениях",4,"Экзамен","2015/2016 учебный год 4 модуль",null,32,4,1,1,1014851738,2098,null,"stCommon",0,"Системы управления и обработки информации в инженерии",{"$f":"MATCH(D123,Отчет!$C$1:$C$65535,0)","v":15}]
[1173992225,6,"МСУ151",1164852301,"Голованова Анастасия Юрьевна","М151МСУОИ001","Стохастические методы в инженерных приложениях",4,"Экзамен","2015/2016 учебный год 4 модуль",null,24,4,1,1,1014851738,2098,null,"stCommon",0,"Системы управления и обработки информации в инженерии",{"$f":"MATCH(D124,Отчет!$C$1:$C$65535,0)","v":16}]
[1173992283,4,"МСУ151",1164852314,"Иванов Роман Николаевич","М151МСУОИ018","Стохастические методы в инженерных приложениях",4,"Экзамен","2015/2016 учебный год 4 модуль",null,0,4,1,1,1014851738,2098,null,"stCommon",0,"Системы управления и обработки информации в инженерии",{"$f":"MATCH(D125,Отчет!$C$1:$C$65535,0)","v":22}]
[1173992458,8,"МСУ151",1164852327,"Курочкин Роман Игоревич","М151МСУОИ006","Стохастические методы в инженерных приложениях",4,"Экзамен","2015/2016 учебный год 4 модуль",null,32,4,1,1,1014851738,2098,null,"stCommon",0,"Системы управления и обработки информации в инженерии",{"$f":"MATCH(D126,Отчет!$C$1:$C$65535,0)","v":12}]
[1173992340,6,"МСУ151",1171450447,"Ковалева Анна Сергеевна","М151МСУОИ012","Стохастические методы в инженерных приложениях",4,"Экзамен","2015/2016 учебный год 4 модуль",null,24,4,1,0,1014851738,2098,null,"stCommon",0,"Системы управления и обработки информации в инженерии",{"$f":"MATCH(D127,Отчет!$C$1:$C$65535,0)","v":21}]
[1256517334,9,"МСУ151",1164852379,"Пименова Екатерина Юрьевна","М151МСУОИ004","Теория игр",3,"Экзамен","2015/2016 учебный год 4 модуль",null,27,3,1,1,1236129457,2098,null,"stChoosen",0,"Системы управления и обработки информации в инженерии",{"$f":"MATCH(D128,Отчет!$C$1:$C$65535,0)","v":18}]
[1256517330,10,"МСУ151",1164852405,"Сафонова Элла Владимировна","М151МСУОИ008","Теория игр",3,"Экзамен","2015/2016 учебный год 4 модуль",null,30,3,1,1,1236129457,2098,null,"stChoosen",0,"Системы управления и обработки информации в инженерии",{"$f":"MATCH(D129,Отчет!$C$1:$C$65535,0)","v":17}]
[1256517322,10,"МСУ151",1164852301,"Голованова Анастасия Юрьевна","М151МСУОИ001","Теория игр",3,"Экзамен","2015/2016 учебный год 4 модуль",null,30,3,1,1,1236129457,2098,null,"stChoosen",0,"Системы управления и обработки информации в инженерии",{"$f":"MATCH(D130,Отчет!$C$1:$C$65535,0)","v":16}]
[1173992794,7,"МСУ151",1164852353,"Мурзин Петр Евгеньевич","М151МСУОИ011","Теория управления",4,"Экзамен","2015/2016 учебный год 4 модуль",null,28,4,1,1,1014851738,2098,null,"stCommon",0,"Системы управления и обработки информации в инженерии",{"$f":"MATCH(D131,Отчет!$C$1:$C$65535,0)","v":20}]
[1173993042,6,"МСУ151",1164852379,"Пименова Екатерина Юрьевна","М151МСУОИ004","Теория управления",4,"Экзамен","2015/2016 учебный год 4 модуль",null,24,4,1,1,1014851738,2098,null,"stCommon",0,"Системы управления и обработки информации в инженерии",{"$f":"MATCH(D132,Отчет!$C$1:$C$65535,0)","v":18}]
[1173993151,9,"МСУ151",1164852392,"Плотников Станислав Павлович","М151МСУОИ007","Теория управления",4,"Экзамен","2015/2016 учебный год 4 модуль",null,36,4,1,1,1014851738,2098,null,"stCommon",0,"Системы управления и обработки информации в инженерии",{"$f":"MATCH(D133,Отчет!$C$1:$C$65535,0)","v":13}]
[1173993488,5,"МСУ151",1164852431,"Якимов Илья Михайлович","М151МСУОИ010","Теория управления",4,"Экзамен","2015/2016 учебный год 4 модуль",null,20,4,1,1,1014851738,2098,null,"stCommon",0,"Системы управления и обработки информации в инженерии",{"$f":"MATCH(D134,Отчет!$C$1:$C$65535,0)","v":25}]
[1173992930,5,"МСУ151",1164852366,"Пак Тарас Евгеньевич","М151МСУОИ003","Теория управления",4,"Экзамен","2015/2016 учебный год 4 модуль",null,20,4,1,1,1014851738,2098,null,"stCommon",0,"Системы управления и обработки информации в инженерии",{"$f":"MATCH(D135,Отчет!$C$1:$C$65535,0)","v":24}]
[1173993266,5,"МСУ151",1164852405,"Сафонова Элла Владимировна","М151МСУОИ008","Теория управления",4,"Экзамен","2015/2016 учебный год 4 модуль",null,20,4,1,1,1014851738,2098,null,"stCommon",0,"Системы управления и обработки информации в инженерии",{"$f":"MATCH(D136,Отчет!$C$1:$C$65535,0)","v":17}]
[1173991913,8,"МСУ151",1164852223,"Алчинова Регина Вячеславовна","М151МСУОИ002","Теория управления",4,"Экзамен","2015/2016 учебный год 4 модуль",null,32,4,1,1,1014851738,2098,null,"stCommon",0,"Системы управления и обработки информации в инженерии",{"$f":"MATCH(D137,Отчет!$C$1:$C$65535,0)","v":14}]
[1173991967,5,"МСУ151",1164852236,"Андреев Владислав Дмитриевич","М151МСУОИ013","Теория управления",4,"Экзамен","2015/2016 учебный год 4 модуль",null,20,4,1,1,1014851738,2098,null,"stCommon",0,"Системы управления и обработки информации в инженерии",{"$f":"MATCH(D138,Отчет!$C$1:$C$65535,0)","v":23}]
[1173992142,10,"МСУ151",1164852275,"Васильева Елена Олеговна","М151МСУОИ016","Теория управления",4,"Экзамен","2015/2016 учебный год 4 модуль",null,40,4,1,1,1014851738,2098,null,"stCommon",0,"Системы управления и обработки информации в инженерии",{"$f":"MATCH(D139,Отчет!$C$1:$C$65535,0)","v":15}]
[1173992259,5,"МСУ151",1164852301,"Голованова Анастасия Юрьевна","М151МСУОИ001","Теория управления",4,"Экзамен","2015/2016 учебный год 4 модуль",null,20,4,1,1,1014851738,2098,null,"stCommon",0,"Системы управления и обработки информации в инженерии",{"$f":"MATCH(D140,Отчет!$C$1:$C$65535,0)","v":16}]
[1173992317,6,"МСУ151",1164852314,"Иванов Роман Николаевич","М151МСУОИ018","Теория управления",4,"Экзамен","2015/2016 учебный год 4 модуль",null,24,4,1,1,1014851738,2098,null,"stCommon",0,"Системы управления и обработки информации в инженерии",{"$f":"MATCH(D141,Отчет!$C$1:$C$65535,0)","v":22}]
[1173992528,10,"МСУ151",1164852327,"Курочкин Роман Игоревич","М151МСУОИ006","Теория управления",4,"Экзамен","2015/2016 учебный год 4 модуль",null,40,4,1,1,1014851738,2098,null,"stCommon",0,"Системы управления и обработки информации в инженерии",{"$f":"MATCH(D142,Отчет!$C$1:$C$65535,0)","v":12}]
[1181178493,4,"МСУ151",1178703023,"Парамонов Георгий Константинович","М151МСУОИ019","Теория управления",4,"Экзамен","2015/2016 учебный год 4 модуль",null,16,4,1,0,1014851738,2098,null,"stCommon",0,"Системы управления и обработки информации в инженерии",{"$f":"MATCH(D143,Отчет!$C$1:$C$65535,0)","v":26}]
[1173992412,6,"МСУ151",1171450447,"Ковалева Анна Сергеевна","М151МСУОИ012","Теория управления",4,"Экзамен","2015/2016 учебный год 4 модуль",null,24,4,1,0,1014851738,2098,null,"stCommon",0,"Системы управления и обработки информации в инженерии",{"$f":"MATCH(D144,Отчет!$C$1:$C$65535,0)","v":21}]
[1173992657,5,null,1164852340,"Лозован Игорь Иванович","М151МСУОИ005","Теория управления",4,"Экзамен","2015/2016 учебный год 4 модуль",null,20,4,1,1,1014851738,2098,null,"stCommon",0,"Системы управления и обработки информации в инженерии",{"$f":"MATCH(D145,Отчет!$C$1:$C$65535,0)","v":{"$error":"#N/A"}}]
[1173992084,8,"МСУ151",1164852262,"Бережко Валерия Сергеевна","М151МСУОИ015","Теория управления",4,"Экзамен","2015/2016 учебный год 4 модуль",null,32,4,1,1,1014851738,2098,null,"stCommon",0,"Системы управления и обработки информации в инженерии",{"$f":"MATCH(D146,Отчет!$C$1:$C$65535,0)","v":19}]
[1173992069,10,"МСУ151",1164852262,"Бережко Валерия Сергеевна","М151МСУОИ015","Управление проектами",3,"Экзамен","2015/2016 учебный год 4 модуль",null,30,3,1,1,1014851738,2098,null,"stCommon",0,"Системы управления и обработки информации в инженерии",{"$f":"MATCH(D147,Отчет!$C$1:$C$65535,0)","v":19}]
[1173992501,9,"МСУ151",1164852327,"Курочкин Роман Игоревич","М151МСУОИ006","Управление проектами",3,"Экзамен","2015/2016 учебный год 4 модуль",null,27,3,1,1,1014851738,2098,null,"stCommon",0,"Системы управления и обработки информации в инженерии",{"$f":"MATCH(D148,Отчет!$C$1:$C$65535,0)","v":12}]
[1181178481,7,"МСУ151",1178703023,"Парамонов Георгий Константинович","М151МСУОИ019","Управление проектами",3,"Экзамен","2015/2016 учебный год 4 модуль",null,21,3,1,0,1014851738,2098,null,"stCommon",0,"Системы управления и обработки информации в инженерии",{"$f":"MATCH(D149,Отчет!$C$1:$C$65535,0)","v":26}]
[1173992628,8,null,1164852340,"Лозован Игорь Иванович","М151МСУОИ005","Управление проектами",3,"Экзамен","2015/2016 учебный год 4 модуль",null,24,3,1,1,1014851738,2098,null,"stCommon",0,"Системы управления и обработки информации в инженерии",{"$f":"MATCH(D150,Отчет!$C$1:$C$65535,0)","v":{"$error":"#N/A"}}]
[1173992763,10,"МСУ151",1164852353,"Мурзин Петр Евгеньевич","М151МСУОИ011","Управление проектами",3,"Экзамен","2015/2016 учебный год 4 модуль",null,30,3,1,1,1014851738,2098,null,"stCommon",0,"Системы управления и обработки информации в инженерии",{"$f":"MATCH(D151,Отчет!$C$1:$C$65535,0)","v":20}]
[1173993017,10,"МСУ151",1164852379,"Пименова Екатерина Юрьевна","М151МСУОИ004","Управление проектами",3,"Экзамен","2015/2016 учебный год 4 модуль",null,30,3,1,1,1014851738,2098,null,"stCommon",0,"Системы управления и обработки информации в инженерии",{"$f":"MATCH(D152,Отчет!$C$1:$C$65535,0)","v":18}]
[1173993126,10,"МСУ151",1164852392,"Плотников Станислав Павлович","М151МСУОИ007","Управление проектами",3,"Экзамен","2015/2016 учебный год 4 модуль",null,30,3,1,1,1014851738,2098,null,"stCommon",0,"Системы управления и обработки информации в инженерии",{"$f":"MATCH(D153,Отчет!$C$1:$C$65535,0)","v":13}]
[1173993466,7,"МСУ151",1164852431,"Якимов Илья Михайлович","М151МСУОИ010","Управление проектами",3,"Экзамен","2015/2016 учебный год 4 модуль",null,21,3,1,1,1014851738,2098,null,"stCommon",0,"Системы управления и обработки информации в инженерии",{"$f":"MATCH(D154,Отчет!$C$1:$C$65535,0)","v":25}]
[1173992901,8,"МСУ151",1164852366,"Пак Тарас Евгеньевич","М151МСУОИ003","Управление проектами",3,"Экзамен","2015/2016 учебный год 4 модуль",null,24,3,1,1,1014851738,2098,null,"stCommon",0,"Системы управления и обработки информации в инженерии",{"$f":"MATCH(D155,Отчет!$C$1:$C$65535,0)","v":24}]
[1173993241,10,"МСУ151",1164852405,"Сафонова Элла Владимировна","М151МСУОИ008","Управление проектами",3,"Экзамен","2015/2016 учебный год 4 модуль",null,30,3,1,1,1014851738,2098,null,"stCommon",0,"Системы управления и обработки информации в инженерии",{"$f":"MATCH(D156,Отчет!$C$1:$C$65535,0)","v":17}]
[1173991900,10,"МСУ151",1164852223,"Алчинова Регина Вячеславовна","М151МСУОИ002","Управление проектами",3,"Экзамен","2015/2016 учебный год 4 модуль",null,30,3,1,1,1014851738,2098,null,"stCommon",0,"Системы управления и обработки информации в инженерии",{"$f":"MATCH(D157,Отчет!$C$1:$C$65535,0)","v":14}]
[1173991955,7,"МСУ151",1164852236,"Андреев Владислав Дмитриевич","М151МСУОИ013","Управление проектами",3,"Экзамен","2015/2016 учебный год 4 модуль",null,21,3,1,1,1014851738,2098,null,"stCommon",0,"Системы управления и обработки информации в инженерии",{"$f":"MATCH(D158,Отчет!$C$1:$C$65535,0)","v":23}]
[1173992129,8,"МСУ151",1164852275,"Васильева Елена Олеговна","М151МСУОИ016","Управление проектами",3,"Экзамен","2015/2016 учебный год 4 модуль",null,24,3,1,1,1014851738,2098,null,"stCommon",0,"Системы управления и обработки информации в инженерии",{"$f":"MATCH(D159,Отчет!$C$1:$C$65535,0)","v":15}]
[1173992246,10,"МСУ151",1164852301,"Голованова Анастасия Юрьевна","М151МСУОИ001","Управление проектами",3,"Экзамен","2015/2016 учебный год 4 модуль",null,30,3,1,1,1014851738,2098,null,"stCommon",0,"Системы управления и обработки информации в инженерии",{"$f":"MATCH(D160,Отчет!$C$1:$C$65535,0)","v":16}]
[1173992304,8,"МСУ151",1164852314,"Иванов Роман Николаевич","М151МСУОИ018","Управление проектами",3,"Экзамен","2015/2016 учебный год 4 модуль",null,24,3,1,1,1014851738,2098,null,"stCommon",0,"Системы управления и обработки информации в инженерии",{"$f":"MATCH(D161,Отчет!$C$1:$C$65535,0)","v":22}]
[1173992386,9,"МСУ151",1171450447,"Ковалева Анна Сергеевна","М151МСУОИ012","Управление проектами",3,"Экзамен","2015/2016 учебный год 4 модуль",null,27,3,1,0,1014851738,2098,null,"stCommon",0,"Системы управления и обработки информации в инженерии",{"$f":"MATCH(D162,Отчет!$C$1:$C$65535,0)","v":21}]
[1173992042,6,"МСУ151",1164852262,"Бережко Валерия Сергеевна","М151МСУОИ015","Функциональный анализ",4,"Экзамен","2015/2016 учебный год 4 модуль",null,24,4,1,1,1014851738,2098,null,"stCommon",0,"Системы управления и обработки информации в инженерии",{"$f":"MATCH(D163,Отчет!$C$1:$C$65535,0)","v":19}]
[1173992572,1,null,1164852340,"Лозован Игорь Иванович","М151МСУОИ005","Функциональный анализ",4,"Экзамен","2015/2016 учебный год 4 модуль",null,0,4,0,1,1014851738,2098,null,"stCommon",0,"Системы управления и обработки информации в инженерии",{"$f":"MATCH(D164,Отчет!$C$1:$C$65535,0)","v":{"$error":"#N/A"}}]
[1181178457,4,"МСУ151",1178703023,"Парамонов Георгий Константинович","М151МСУОИ019","Функциональный анализ",4,"Экзамен","2015/2016 учебный год 4 модуль",null,16,4,1,0,1014851738,2098,null,"stCommon",0,"Системы управления и обработки информации в инженерии",{"$f":"MATCH(D165,Отчет!$C$1:$C$65535,0)","v":26}]
[1173992705,8,"МСУ151",1164852353,"Мурзин Петр Евгеньевич","М151МСУОИ011","Функциональный анализ",4,"Экзамен","2015/2016 учебный год 4 модуль",null,32,4,1,1,1014851738,2098,null,"stCommon",0,"Системы управления и обработки информации в инженерии",{"$f":"MATCH(D166,Отчет!$C$1:$C$65535,0)","v":20}]
[1173992970,8,"МСУ151",1164852379,"Пименова Екатерина Юрьевна","М151МСУОИ004","Функциональный анализ",4,"Экзамен","2015/2016 учебный год 4 модуль",null,32,4,1,1,1014851738,2098,null,"stCommon",0,"Системы управления и обработки информации в инженерии",{"$f":"MATCH(D167,Отчет!$C$1:$C$65535,0)","v":18}]
[1173993077,4,"МСУ151",1164852392,"Плотников Станислав Павлович","М151МСУОИ007","Функциональный анализ",4,"Экзамен","2015/2016 учебный год 4 модуль",null,16,4,1,1,1014851738,2098,null,"stCommon",0,"Системы управления и обработки информации в инженерии",{"$f":"MATCH(D168,Отчет!$C$1:$C$65535,0)","v":13}]
[1173993416,6,"МСУ151",1164852431,"Якимов Илья Михайлович","М151МСУОИ010","Функциональный анализ",4,"Экзамен","2015/2016 учебный год 4 модуль",null,24,4,1,1,1014851738,2098,null,"stCommon",0,"Системы управления и обработки информации в инженерии",{"$f":"MATCH(D169,Отчет!$C$1:$C$65535,0)","v":25}]
[1173992842,7,"МСУ151",1164852366,"Пак Тарас Евгеньевич","М151МСУОИ003","Функциональный анализ",4,"Экзамен","2015/2016 учебный год 4 модуль",null,28,4,1,1,1014851738,2098,null,"stCommon",0,"Системы управления и обработки информации в инженерии",{"$f":"MATCH(D170,Отчет!$C$1:$C$65535,0)","v":24}]
[1173993190,6,"МСУ151",1164852405,"Сафонова Элла Владимировна","М151МСУОИ008","Функциональный анализ",4,"Экзамен","2015/2016 учебный год 4 модуль",null,24,4,1,1,1014851738,2098,null,"stCommon",0,"Системы управления и обработки информации в инженерии",{"$f":"MATCH(D171,Отчет!$C$1:$C$65535,0)","v":17}]
[1173991871,6,"МСУ151",1164852223,"Алчинова Регина Вячеславовна","М151МСУОИ002","Функциональный анализ",4,"Экзамен","2015/2016 учебный год 4 модуль",null,24,4,1,1,1014851738,2098,null,"stCommon",0,"Системы управления и обработки информации в инженерии",{"$f":"MATCH(D172,Отчет!$C$1:$C$65535,0)","v":14}]
[1173991931,7,"МСУ151",1164852236,"Андреев Владислав Дмитриевич","М151МСУОИ013","Функциональный анализ",4,"Экзамен","2015/2016 учебный год 4 модуль",null,28,4,1,1,1014851738,2098,null,"stCommon",0,"Системы управления и обработки информации в инженерии",{"$f":"MATCH(D173,Отчет!$C$1:$C$65535,0)","v":23}]
[1173992103,6,"МСУ151",1164852275,"Васильева Елена Олеговна","М151МСУОИ016","Функциональный анализ",4,"Экзамен","2015/2016 учебный год 4 модуль",null,24,4,1,1,1014851738,2098,null,"stCommon",0,"Системы управления и обработки информации в инженерии",{"$f":"MATCH(D174,Отчет!$C$1:$C$65535,0)","v":15}]
[1173992220,10,"МСУ151",1164852301,"Голованова Анастасия Юрьевна","М151МСУОИ001","Функциональный анализ",4,"Экзамен","2015/2016 учебный год 4 модуль",null,40,4,1,1,1014851738,2098,null,"stCommon",0,"Системы управления и обработки информации в инженерии",{"$f":"MATCH(D175,Отчет!$C$1:$C$65535,0)","v":16}]
[1173992278,7,"МСУ151",1164852314,"Иванов Роман Николаевич","М151МСУОИ018","Функциональный анализ",4,"Экзамен","2015/2016 учебный год 4 модуль",null,28,4,1,1,1014851738,2098,null,"stCommon",0,"Системы управления и обработки информации в инженерии",{"$f":"MATCH(D176,Отчет!$C$1:$C$65535,0)","v":22}]
[1173992450,10,"МСУ151",1164852327,"Курочкин Роман Игоревич","М151МСУОИ006","Функциональный анализ",4,"Экзамен","2015/2016 учебный год 4 модуль",null,40,4,1,1,1014851738,2098,null,"stCommon",0,"Системы управления и обработки информации в инженерии",{"$f":"MATCH(D177,Отчет!$C$1:$C$65535,0)","v":12}]
[1173992336,5,"МСУ151",1171450447,"Ковалева Анна Сергеевна","М151МСУОИ012","Функциональный анализ",4,"Экзамен","2015/2016 учебный год 4 модуль",null,20,4,1,0,1014851738,2098,null,"stCommon",0,"Системы управления и обработки информации в инженерии",{"$f":"MATCH(D178,Отчет!$C$1:$C$65535,0)","v":21}]